fUSD/lending_fUSD_20251212
["ID","MTS","AMOUNT","RATE_DAILY","PERIOD"]
[398335105,1765538018825,-500.0,0.00039452,30]
[398335106,1765538018836,-400.0,0.00039452,30]
[398335107,1765538018846,-500.0,0.00039452,30]
[398335108,1765538018859,-364.91047841,0.00039452,30]
[398335109,1765538018869,-563.9,0.00039452,30]
[398335110,1765538018879,-555.94,0.00039452,30]
[398335111,1765538018889,-500.0,0.00039452,30]
[398335112,1765538018899,-574.33760237,0.00039452,30]
[398335113,1765538018910,-500.0,0.00039452,30]
[398335114,1765538018920,-500.0,0.00039452,30]
[398335115,1765538018931,-500.0,0.00039452,30]
[398335116,1765538018944,-500.0,0.00039452,30]
[398335117,1765538018953,-500.0,0.00039452,30]
[398335118,1765538018964,-500.0,0.00039452,30]
[398335119,1765538018981,-868.9,0.00039452,30]
[398335120,1765538018995,-500.0,0.00039452,30]
[398335121,1765538019006,-671.73,0.00039452,30]
[398335122,1765538019017,-500.0,0.00039452,30]
[398335123,1765538019028,-2439.55,0.00039452,30]
[398335124,1765538019038,-2828.46,0.00039452,120]
[398335125,1765538019049,-500.0,0.00039452,30]
[398335126,1765538019059,-500.0,0.00039452,30]
[398335127,1765538019070,-500.0,0.00039452,30]
[398335128,1765538019082,-457.07,0.00039452,30]
[398335129,1765538019093,-3289.05,0.00039452,30]
[398335130,1765538019104,-5959.38536385,0.00039452,30]
[398335131,1765538019115,-500.0,0.00039452,7]
[398335132,1765538019126,-1876.03,0.00039452,30]
[398335133,1765538019136,-500.0,0.00039452,30]
[398335134,1765538019148,-500.52,0.00039452,30]
[398335135,1765538019158,-500.0,0.00039452,30]
[398335136,1765538019168,-500.0,0.00039452,30]
[398335137,1765538019179,-500.0,0.00039452,30]
[398335138,1765538019189,-500.52,0.00039452,30]
[398335139,1765538019200,-500.0,0.00039452,30]
[398335140,1765538019211,-500.0,0.00039452,30]
[398335141,1765538019221,-500.0,0.00039452,30]
[398335142,1765538019232,-334.42,0.00039452,30]
[398335143,1765538019243,-500.0,0.00039452,30]
[398335144,1765538019252,-500.52,0.00039452,30]
[398335145,1765538019263,-522.46,0.00039452,30]
[398335146,1765538019273,-276.88,0.00039452,30]
[398335147,1765538019283,-500.0,0.00039452,30]
[398335148,1765538019294,-500.0,0.00039452,30]
[398335149,1765538019305,-500.0,0.00039452,30]
[398335150,1765538019315,-213.1,0.00039452,30]
[398335151,1765538019325,-500.0,0.00039452,30]
[398335152,1765538019335,-414.34,0.00039452,30]
[398335153,1765538019346,-238.99,0.00039452,30]
[398335154,1765538019356,-360.19,0.00039452,30]
[398335155,1765538019366,-500.0,0.00039452,30]
[398335156,1765538019376,-500.0,0.00039452,30]
[398335157,1765538019385,-478.96,0.00039452,30]
[398335158,1765538019395,-376.21,0.00039452,30]
[398335159,1765538019405,-500.0,0.00039452,30]
[398335160,1765538019415,-348.06,0.00039452,30]
[398335161,1765538019425,-500.0,0.00039452,30]
[398335162,1765538019435,-641.63,0.00039452,30]
[398335163,1765538019445,-500.0,0.00039452,30]
[398335164,1765538019455,-500.0,0.00039452,30]
[398335165,1765538019466,-500.0,0.00039452,30]
[398335166,1765538019477,-208.79,0.00039452,30]
[398335167,1765538019487,-210.74,0.00039452,30]
[398335168,1765538019497,-500.0,0.00039452,30]
[398335169,1765538019507,-500.0,0.00039452,30]
[398335170,1765538019522,-262.88,0.00039452,30]
[398335171,1765538019532,-500.0,0.00039452,30]
[398335172,1765538019543,-500.0,0.00039452,30]
[398335173,1765538019553,-500.0,0.00039452,30]
[398335174,1765538020067,-500.0,0.00039452,30]
[398335175,1765538020077,-500.0,0.00039452,30]
[398335176,1765538020087,-231.69,0.00039452,30]
[398335177,1765538020098,-500.0,0.00039452,2]
[398335178,1765538020107,-932.972515,0.00039452,30]
[398335179,1765538020118,-168.15043,0.00039452,30]
[398335180,1765538020128,-1953.93417,0.00039452,30]
[398335181,1765538020138,-1767.482813,0.00039452,30]
[398335182,1765538020147,-171.577909,0.00039452,30]
[398335183,1765538020157,-1310.696547,0.00039452,30]
[398335184,1765538020167,-1000.0,0.00039452,120]
[398335185,1765538020176,-500.0,0.00039452,10]
[398335186,1765538020186,-1014.43,0.00039452,30]
[398335187,1765538020195,-500.0,0.00039452,30]
[398335188,1765538020204,-500.0,0.00039452,30]
[398335189,1765538020214,-300.0,0.00039452,2]
[398335190,1765538020223,-1000.0,0.00039452,30]
[398335191,1765538020233,-352.09,0.00039452,2]
[398335192,1765538020242,-645.54,0.00039452,30]
[398335193,1765538020254,-500.0,0.00039452,30]
[398335194,1765538020266,-523.99,0.00039452,120]
[398335195,1765538020276,-500.0,0.00039452,2]
[398335196,1765538020286,-1994.45,0.00039452,30]
[398335197,1765538020296,-2057.12,0.00039452,30]
[398335198,1765538020306,-500.0,0.00039452,2]
[398335199,1765538020315,-300.0,0.00039452,2]
[398335200,1765538020325,-500.0,0.00039452,2]
[398335201,1765538020335,-600.0,0.00039452,30]
[398335202,1765538020345,-500.0,0.00039452,120]
[398335203,1765538020355,-500.0,0.00039463,120]
[398335204,1765538020364,-500.0,0.00039474,120]
[398335205,1765538020379,-847.8398743,0.00039481,30]
[398335206,1765538020389,-163.31,0.00039483,120]
[398335207,1765538020399,-155.54,0.00039484,120]
[398335208,1765538020410,-500.0,0.00039485,120]
[398335209,1765538020420,-500.0,0.00039496,120]
[398335210,1765538020430,-905.74186046,0.000395,2]
[398335211,1765538020440,-1000.0,0.000395,120]
[398335212,1765538020450,-4999.999998,0.000395,60]
[398335213,1765538020460,-250.0,0.000395,7]
[398335214,1765538020470,-500.0,0.00039507,120]
[398335215,1765538020480,-500.0,0.00039518,120]
[398335216,1765538020490,-500.0,0.00039529,120]
[398335217,1765538020500,-500.0,0.0003954,120]
[398335218,1765538020510,-500.0,0.00039551,120]
[398335219,1765538020520,-500.0,0.00039562,120]
[398335220,1765538020530,-317.0,0.00039562,7]
[398335221,1765538020539,-6138.0,0.00039566,2]
[398335222,1765538020549,-847.8398743,0.00039567,30]
[398335223,1765538020559,-500.0,0.00039573,120]
[398335224,1765538020569,-163.31,0.00039583,120]
[398335225,1765538020579,-500.0,0.00039584,120]
[398335226,1765538020589,-155.54,0.00039584,120]
[398335227,1765538020599,-500.0,0.00039589,30]
[398335228,1765538020608,-500.0,0.00039595,120]
[398335229,1765538020618,-500.0,0.000396,120]
[398335230,1765538020628,-500.0,0.000396,120]
[398335231,1765538020638,-500.0,0.000396,120]
[398335232,1765538020648,-500.0,0.000396,120]
[398335233,1765538020661,-500.0,0.000396,120]
[398335234,1765538020671,-500.0,0.000396,120]
[398335235,1765538020681,-672.45,0.000396,30]
[398335236,1765538020691,-201.0,0.000396,120]
[398335237,1765538020700,-500.0,0.00039605,120]
[398335238,1765538020710,-500.0,0.00039616,120]
[398335239,1765538020720,-500.0,0.00039627,120]
[398335240,1765538020730,-500.0,0.00039638,120]
[398335241,1765538020740,-500.0,0.00039649,120]
[398335242,1765538020750,-847.8398743,0.00039654,30]
[398335243,1765538020760,-500.0,0.0003966,120]
[398335244,1765538020770,-500.0,0.00039671,120]
[398335245,1765538020780,-500.0,0.00039682,120]
[398335246,1765538020789,-163.32988497,0.00039683,120]
[398335247,1765538020799,-155.54,0.00039684,120]
[398335248,1765538020810,-500.0,0.00039693,120]
[398335249,1765538020819,-6138.0,0.00039703,2]
[398335250,1765538020831,-500.0,0.00039704,120]
[398335251,1765538020841,-500.0,0.00039715,120]
[398335252,1765538020853,-500.0,0.00039726,30]
[398335253,1765538020867,-500.0,0.00039726,120]
[398335254,1765538020877,-509.10281599,0.00039726,30]
[398335255,1765538020887,-500.0,0.00039726,30]
[398335256,1765538020897,-442.60037363,0.00039726,30]
[398335257,1765538020907,-500.0,0.00039726,30]
[398335258,1765538020917,-500.0,0.00039726,30]
[398335259,1765538020927,-500.0,0.00039726,30]
[398335260,1765538020939,-500.0,0.00039726,16]
[398335261,1765538020948,-1824.08,0.00039726,30]
[398335262,1765538020958,-500.0,0.00039726,30]
[398335263,1765538020968,-500.0,0.00039726,30]
[398335264,1765538020978,-500.0,0.00039726,30]
[398335265,1765538020988,-651.26,0.00039726,30]
[398335266,1765538020998,-500.0,0.00039726,30]
[398335267,1765538021008,-500.0,0.00039726,30]
[398335268,1765538021017,-500.0,0.00039726,30]
[398335269,1765538021028,-500.0,0.00039726,30]
[398335270,1765538021038,-500.0,0.00039726,30]
[398335271,1765538021050,-500.0,0.00039726,30]
[398335272,1765538021059,-500.0,0.00039726,30]
[398335273,1765538021069,-768.58,0.00039726,30]
[398335274,1765538021079,-500.0,0.00039726,30]
[398335275,1765538021088,-502.46896622,0.00039726,30]
[398335276,1765538021097,-604.69,0.00039726,30]
[398335277,1765538021107,-500.0,0.00039726,30]
[398335278,1765538021117,-500.0,0.00039726,30]
[398335279,1765538021127,-500.0,0.00039726,30]
[398335280,1765538021137,-528.79570729,0.00039726,30]
[398335281,1765538021146,-500.0,0.00039726,30]
[398335282,1765538021156,-1703.32,0.00039726,30]
[398335283,1765538021166,-601.55,0.00039726,7]
[398335284,1765538021176,-500.0,0.00039726,30]
[398335285,1765538021186,-662.42,0.00039726,30]
[398335286,1765538021196,-693.68,0.00039726,30]
[398335287,1765538021205,-500.0,0.00039726,30]
[398335288,1765538021215,-354.49054899,0.00039726,30]
[398335289,1765538021225,-500.0,0.00039726,30]
[398335290,1765538021235,-500.0,0.00039726,30]
[398335291,1765538021244,-500.0,0.00039726,30]
[398335292,1765538021255,-1436.54,0.00039726,30]
[398335293,1765538021265,-500.0,0.00039726,30]
[398335294,1765538021275,-500.0,0.00039726,30]
[398335295,1765538021285,-500.0,0.00039726,30]
[398335296,1765538021295,-500.0,0.00039726,30]
[398335297,1765538021304,-500.0,0.00039726,30]
[398335298,1765538021314,-500.0,0.00039726,30]
[398335299,1765538021324,-500.0,0.00039726,30]
[398335300,1765538021333,-500.0,0.00039726,30]
[398335301,1765538021344,-500.0,0.00039726,30]
[398335302,1765538021353,-500.0,0.00039726,30]
[398335303,1765538021363,-500.0,0.00039726,30]
[398335304,1765538021373,-500.0,0.00039726,30]
[398335305,1765538021383,-500.0,0.00039726,30]
[398335306,1765538021393,-698.57,0.00039726,30]
[398335307,1765538021402,-500.0,0.00039726,30]
[398335308,1765538021412,-789.19,0.00039726,30]
[398335309,1765538021422,-500.0,0.00039726,30]
[398335310,1765538021442,-500.0,0.00039726,30]
[398335311,1765538021453,-627.23,0.00039726,30]
[398335312,1765538021464,-772.34,0.00039726,30]
[398335313,1765538021474,-500.0,0.00039726,30]
[398335314,1765538021485,-500.0,0.00039726,30]
[398335315,1765538021495,-500.0,0.00039726,30]
[398335316,1765538021505,-500.0,0.00039726,30]
[398335317,1765538021516,-500.0,0.00039726,30]
[398335318,1765538021526,-741.68,0.00039726,30]
[398335319,1765538021536,-500.0,0.00039726,30]
[398335320,1765538021546,-500.0,0.00039726,30]
[398335321,1765538021557,-545.86,0.00039726,30]
[398335322,1765538021567,-625.45,0.00039726,30]
[398335323,1765538021578,-500.0,0.00039726,30]
[398335324,1765538021588,-646.79,0.00039726,30]
[398335325,1765538021599,-646.65,0.00039726,30]
[398335326,1765538021609,-500.0,0.00039726,30]
[398335327,1765538021619,-517.74685899,0.00039726,30]
[398335328,1765538021630,-411.08047804,0.00039726,30]
[398335329,1765538021640,-794.95,0.00039726,30]
[398335330,1765538021651,-500.0,0.00039726,30]
[398335331,1765538021662,-687.17,0.00039726,30]
[398335332,1765538021672,-500.0,0.00039726,30]
[398335333,1765538021683,-500.0,0.00039726,30]
[398335334,1765538021694,-500.0,0.00039726,30]
[398335335,1765538021705,-506.3127304,0.00039726,30]
[398335336,1765538021715,-885.09,0.00039726,30]
[398335337,1765538021726,-500.0,0.00039726,30]
[398335338,1765538021737,-1097.95,0.00039726,30]
[398335339,1765538021747,-500.0,0.00039726,30]
[398335340,1765538021757,-500.0,0.00039726,30]
[398335341,1765538021767,-500.0,0.00039726,30]
[398335342,1765538021778,-837.55,0.00039726,30]
[398335343,1765538021788,-540.22,0.00039726,30]
[398335344,1765538021798,-506.585925,0.00039726,30]
[398335345,1765538021809,-444.48559321,0.00039726,30]
[398335346,1765538021819,-500.0,0.00039726,30]
[398335347,1765538021829,-500.0,0.00039726,30]
[398335348,1765538021839,-519.63,0.00039726,30]
[398335349,1765538021850,-500.0,0.00039726,30]
[398335350,1765538021863,-500.0,0.00039726,30]
[398335351,1765538021873,-1294.43,0.00039726,30]
[398335352,1765538021883,-500.0,0.00039726,30]
[398335353,1765538021895,-500.0,0.00039726,30]
[398335354,1765538021906,-1011.88,0.00039726,30]
[398335355,1765538021915,-500.0,0.00039726,30]
[398335356,1765538021926,-500.0,0.00039726,30]
[398335357,1765538021936,-500.0,0.00039726,30]
[398335358,1765538021946,-500.0,0.00039726,30]
[398335359,1765538021956,-500.0,0.00039726,30]
[398335360,1765538021966,-500.0,0.00039726,30]
[398335361,1765538021977,-500.0,0.00039726,30]
[398335362,1765538021987,-500.0,0.00039726,30]
[398335363,1765538021997,-500.0,0.00039726,30]
[398335364,1765538022007,-1196.03,0.00039726,30]
[398335365,1765538022017,-617.95,0.00039726,30]
[398335366,1765538022027,-548.66,0.00039726,30]
[398335367,1765538022037,-368.88646097,0.00039726,30]
[398335368,1765538022047,-500.0,0.00039726,30]
[398335369,1765538022056,-500.0,0.00039726,30]
[398335370,1765538022066,-500.0,0.00039726,30]
[398335371,1765538022076,-678.18,0.00039726,30]
[398335372,1765538022086,-627.70515752,0.00039726,30]
[398335373,1765538022096,-500.0,0.00039726,30]
[398335374,1765538022107,-500.0,0.00039726,30]
[398335375,1765538022117,-500.0,0.00039726,30]
[398335376,1765538022127,-585.26,0.00039726,30]
[398335377,1765538022137,-500.0,0.00039726,30]
[398335378,1765538022147,-326.92068322,0.00039726,30]
[398335379,1765538022157,-500.0,0.00039726,30]
[398335380,1765538022166,-500.0,0.00039726,30]
[398335381,1765538022176,-500.0,0.00039726,30]
[398335382,1765538022186,-500.0,0.00039726,30]
[398335383,1765538022196,-500.0,0.00039726,30]
[398335384,1765538022206,-672.38,0.00039726,30]
[398335385,1765538022215,-500.0,0.00039726,30]
[398335386,1765538022225,-542.28,0.00039726,30]
[398335387,1765538022235,-500.0,0.00039726,30]
[398335388,1765538022245,-500.0,0.00039726,30]
[398335389,1765538022255,-755.36,0.00039726,30]
[398335390,1765538022264,-1228.59,0.00039726,30]
[398335391,1765538022274,-500.0,0.00039726,30]
[398335392,1765538022283,-500.0,0.00039726,30]
[398335393,1765538022293,-1439.79,0.00039726,30]
[398335394,1765538022302,-500.0,0.00039726,30]
[398335395,1765538022312,-864.07,0.00039726,30]
[398335396,1765538022322,-500.0,0.00039726,30]
[398335397,1765538022332,-500.0,0.00039726,30]
[398335398,1765538022342,-500.0,0.00039726,30]
[398335399,1765538022351,-500.0,0.00039726,30]
[398335400,1765538022361,-573.95,0.00039726,30]
[398335401,1765538022370,-500.0,0.00039726,30]
[398335402,1765538022379,-500.0,0.00039726,30]
[398335403,1765538022389,-533.54,0.00039726,30]
[398335404,1765538022398,-938.76,0.00039726,30]
[398335405,1765538022407,-500.0,0.00039726,30]
[398335406,1765538022417,-500.0,0.00039726,30]
[398335407,1765538022427,-304.93133697,0.00039726,30]
[398335408,1765538022437,-500.0,0.00039726,30]
[398335409,1765538022446,-298.68706149,0.00039726,30]
[398335410,1765538022455,-620.08,0.00039726,30]
[398335411,1765538022464,-775.57,0.00039726,30]
[398335412,1765538022474,-500.0,0.00039726,30]
[398335413,1765538022483,-500.0,0.00039726,30]
[398335414,1765538022492,-500.0,0.00039726,30]
[398335415,1765538022501,-500.0,0.00039726,30]
[398335416,1765538022511,-500.0,0.00039726,30]
[398335417,1765538022520,-501.55,0.00039726,30]
[398335418,1765538022530,-500.0,0.00039726,30]
[398335419,1765538022539,-500.0,0.00039726,30]
[398335420,1765538022548,-500.0,0.00039726,14]
[398335421,1765538022558,-500.0,0.00039726,30]
[398335422,1765538022567,-500.0,0.00039726,30]
[398335423,1765538022576,-500.0,0.00039726,30]
[398335424,1765538022586,-755.67,0.00039726,30]
[398335425,1765538022804,-500.0,0.00039726,30]
[398335426,1765538022814,-503.01,0.00039726,30]
[398335427,1765538022823,-500.0,0.00039726,30]
[398335428,1765538022832,-500.0,0.00039726,30]
[398335429,1765538022841,-500.0,0.00039726,30]
[398335430,1765538022851,-595.47,0.00039726,30]
[398335431,1765538022863,-517.36,0.00039726,30]
[398335432,1765538022873,-500.0,0.00039726,30]
[398335433,1765538022882,-500.0,0.00039726,30]
[398335434,1765538022891,-500.0,0.00039726,30]
[398335435,1765538022901,-1197.34,0.00039726,30]
[398335436,1765538022910,-500.0,0.00039726,30]
[398335437,1765538022919,-609.14,0.00039726,30]
[398335438,1765538022929,-500.0,0.00039726,30]
[398335439,1765538022939,-897.9,0.00039726,30]
[398335440,1765538022948,-702.09,0.00039726,30]
[398335441,1765538022958,-663.82,0.00039726,30]
[398335442,1765538022967,-500.0,0.00039726,30]
[398335443,1765538022977,-512.42433626,0.00039726,30]
[398335444,1765538022987,-500.0,0.00039726,30]
[398335445,1765538022997,-500.0,0.00039726,30]
[398335446,1765538023006,-500.0,0.00039726,30]
[398335447,1765538023016,-500.0,0.00039726,30]
[398335448,1765538023025,-740.86,0.00039726,30]
[398335449,1765538023035,-500.0,0.00039726,30]
[398335450,1765538023045,-500.0,0.00039726,30]
[398335451,1765538023054,-1430.91,0.00039726,30]
[398335452,1765538023063,-500.0,0.00039726,30]
[398335453,1765538023073,-500.0,0.00039726,30]
[398335454,1765538023082,-1100.71,0.00039726,11]
[398335455,1765538023091,-563.18,0.00039726,30]
[398335456,1765538023101,-1144.71,0.00039726,30]
[398335457,1765538023110,-758.29,0.00039726,30]
[398335458,1765538023119,-500.0,0.00039726,30]
[398335459,1765538023128,-667.94,0.00039726,30]
[398335460,1765538023137,-500.0,0.00039726,30]
[398335461,1765538023147,-500.0,0.00039726,30]
[398335462,1765538023156,-1846.03,0.00039726,30]
[398335463,1765538023165,-500.0,0.00039726,30]
[398335464,1765538023174,-500.0,0.00039726,30]
[398335465,1765538023183,-500.0,0.00039726,30]
[398335466,1765538023192,-500.0,0.00039726,30]
[398335467,1765538023203,-500.0,0.00039726,30]
[398335468,1765538023212,-500.0,0.00039726,30]
[398335469,1765538023221,-500.0,0.00039726,30]
[398335470,1765538023230,-676.5,0.00039726,30]
[398335471,1765538023239,-500.0,0.00039726,30]
[398335472,1765538023248,-500.0,0.00039726,30]
[398335473,1765538023257,-194.1555643,0.00039726,30]
[398335474,1765538023266,-732.08,0.00039726,30]
[398335475,1765538023275,-724.94,0.00039726,30]
[398335476,1765538023284,-500.0,0.00039726,30]
[398335477,1765538023293,-643.49,0.00039726,30]
[398335478,1765538023302,-500.0,0.00039726,30]
[398335479,1765538023311,-507.88620658,0.00039726,30]
[398335480,1765538023321,-500.0,0.00039726,30]
[398335481,1765538023330,-1213.64,0.00039726,30]
[398335482,1765538023339,-618.97493007,0.00039726,30]
[398335483,1765538023348,-500.0,0.00039726,30]
[398335484,1765538023357,-607.07,0.00039726,30]
[398335485,1765538023366,-750.79,0.00039726,30]
[398335486,1765538023376,-500.0,0.00039726,30]
[398335487,1765538023385,-565.7,0.00039726,30]
[398335488,1765538023394,-1215.39,0.00039726,30]
[398335489,1765538023403,-500.0,0.00039726,30]
[398335490,1765538023412,-500.0,0.00039726,30]
[398335491,1765538023421,-500.0,0.00039726,30]
[398335492,1765538023430,-500.0,0.00039726,30]
[398335493,1765538023439,-848.58,0.00039726,30]
[398335494,1765538023447,-500.0,0.00039726,30]
[398335495,1765538023456,-196.80450616,0.00039726,30]
[398335496,1765538023465,-292.14108947,0.00039726,30]
[398335497,1765538023474,-500.0,0.00039726,30]
[398335498,1765538023484,-500.0,0.00039726,30]
[398335499,1765538023492,-500.0,0.00039726,30]
[398335500,1765538023501,-753.21,0.00039726,30]
[398335501,1765538023510,-500.0,0.00039726,30]
[398335502,1765538023519,-500.0,0.00039726,30]
[398335503,1765538023529,-500.0,0.00039726,30]
[398335504,1765538023539,-500.0,0.00039726,30]
[398335505,1765538023548,-500.0,0.00039726,30]
[398335506,1765538023558,-552.91,0.00039726,30]
[398335507,1765538023567,-500.0,0.00039726,30]
[398335508,1765538023576,-500.0,0.00039726,30]
[398335509,1765538023585,-795.68,0.00039726,30]
[398335510,1765538023595,-500.0,0.00039726,30]
[398335511,1765538023604,-500.0,0.00039726,30]
[398335512,1765538023612,-500.0,0.00039726,30]
[398335513,1765538023622,-521.12000988,0.00039726,30]
[398335514,1765538023631,-500.0,0.00039726,30]
[398335515,1765538023640,-500.0,0.00039726,30]
[398335516,1765538023650,-692.67,0.00039726,30]
[398335517,1765538023659,-745.98,0.00039726,30]
[398335518,1765538023668,-500.0,0.00039726,30]
[398335519,1765538023677,-500.0,0.00039726,30]
[398335520,1765538023687,-500.0,0.00039726,30]
[398335521,1765538023696,-500.0,0.00039726,30]
[398335522,1765538023705,-714.2,0.00039726,30]
[398335523,1765538023714,-500.0,0.00039726,30]
[398335524,1765538023723,-500.0,0.00039726,30]
[398335525,1765538023734,-500.0,0.00039726,30]
[398335526,1765538023743,-500.0,0.00039726,30]
[398335527,1765538023752,-500.0,0.00039726,30]
[398335528,1765538023762,-990.89,0.00039726,30]
[398335529,1765538023771,-500.0,0.00039726,30]
[398335530,1765538023780,-500.0,0.00039726,30]
[398335531,1765538023792,-1141.33,0.00039726,30]
[398335532,1765538023801,-500.0,0.00039726,30]
[398335533,1765538023812,-500.0,0.00039726,30]
[398335534,1765538023821,-500.0,0.00039726,30]
[398335535,1765538023830,-500.0,0.00039726,30]
[398335536,1765538023840,-500.0,0.00039726,30]
[398335537,1765538023851,-500.0,0.00039726,30]
[398335538,1765538023862,-500.0,0.00039726,30]
[398335539,1765538023871,-736.93,0.00039726,30]
[398335540,1765538023880,-500.0,0.00039726,30]
[398335541,1765538023889,-500.0,0.00039726,30]
[398335542,1765538023898,-500.0,0.00039726,30]
[398335543,1765538023908,-500.0,0.00039726,30]
[398335544,1765538023918,-500.0,0.00039726,30]
[398335545,1765538023928,-1026.69,0.00039726,30]
[398335546,1765538023940,-500.0,0.00039726,30]
[398335547,1765538023950,-866.2,0.00039726,30]
[398335548,1765538023959,-500.0,0.00039726,30]
[398335549,1765538023969,-500.0,0.00039726,30]
[398335550,1765538023978,-500.0,0.00039726,30]
[398335551,1765538023988,-510.19,0.00039726,30]
[398335552,1765538023998,-709.46,0.00039726,30]
[398335553,1765538024007,-755.64,0.00039726,30]
[398335554,1765538024017,-512.42570633,0.00039726,30]
[398335555,1765538024027,-500.0,0.00039726,30]
[398335556,1765538024036,-1337.95,0.00039726,30]
[398335557,1765538024046,-500.0,0.00039726,30]
[398335558,1765538024056,-3627.22,0.00039726,30]
[398335559,1765538024065,-750.49,0.00039726,30]
[398335560,1765538024075,-500.0,0.00039726,30]
[398335561,1765538024085,-500.0,0.00039726,30]
[398335562,1765538024095,-500.0,0.00039726,30]
[398335563,1765538024105,-500.0,0.00039726,30]
[398335564,1765538024115,-856.96,0.00039726,30]
[398335565,1765538024125,-1759.45,0.00039726,30]
[398335566,1765538024135,-500.0,0.00039726,30]
[398335567,1765538024146,-524.23,0.00039726,30]
[398335568,1765538024156,-500.0,0.00039726,30]
[398335569,1765538024171,-500.0,0.00039726,30]
[398335570,1765538024180,-500.54,0.00039726,30]
[398335571,1765538024190,-1039.78,0.00039726,30]
[398335572,1765538024199,-730.61,0.00039726,30]
[398335573,1765538024209,-615.84,0.00039726,30]
[398335574,1765538024219,-500.0,0.00039726,30]
[398335575,1765538024228,-382.3023839,0.00039726,30]
[398335576,1765538024237,-647.65,0.00039726,30]
[398335577,1765538024247,-500.0,0.00039726,30]
[398335578,1765538024256,-500.0,0.00039726,30]
[398335579,1765538024266,-906.8,0.00039726,30]
[398335580,1765538024276,-551.86,0.00039726,30]
[398335581,1765538024285,-1472.62,0.00039726,30]
[398335582,1765538024294,-500.0,0.00039726,30]
[398335583,1765538024303,-500.0,0.00039726,30]
[398335584,1765538024313,-500.0,0.00039726,30]
[398335585,1765538024322,-500.0,0.00039726,30]
[398335586,1765538024331,-500.0,0.00039726,30]
[398335587,1765538024341,-500.0,0.00039726,30]
[398335588,1765538024350,-500.0,0.00039726,30]
[398335589,1765538024360,-2737.4,0.00039726,30]
[398335590,1765538024369,-1372.17,0.00039726,30]
[398335591,1765538024379,-500.0,0.00039726,30]
[398335592,1765538024388,-500.0,0.00039726,30]
[398335593,1765538024399,-500.0,0.00039726,30]
[398335594,1765538024409,-500.0,0.00039726,30]
[398335595,1765538024420,-500.0,0.00039726,30]
[398335596,1765538024431,-500.0,0.00039726,30]
[398335597,1765538024440,-500.0,0.00039726,30]
[398335598,1765538024450,-500.0,0.00039726,30]
[398335599,1765538024459,-500.0,0.00039726,30]
[398335600,1765538024468,-2430.46,0.00039726,30]
[398335601,1765538024477,-500.0,0.00039726,30]
[398335602,1765538024487,-500.0,0.00039726,30]
[398335603,1765538024496,-500.0,0.00039726,30]
[398335604,1765538024505,-500.0,0.00039726,30]